bitfinex/quotes_ETHUSD_20250411
["timestamp","ask_amount","ask_price","bid_price","bid_amount"]
[1744406742635,49.354,1579.6,1579.4,6.33124]
[1744406743177,6.877,1579.7,1579.6,6.33071]
[1744406743359,6.877,1579.7,1579.6,7.10041]
[1744406743675,6.877,1580.0,1579.7,6.32991]
[1744406744172,6.877,1580.0,1579.8,6.32971]
[1744406744670,6.877,1580.0,1579.8,12.65948]
[1744406744871,6.877,1580.0,1579.9,6.32951]
[1744406745036,6.877,1580.0,1579.8,12.65942]
[1744406745235,6.877,1580.0,1579.8,14.002332]
[1744406746264,6.877,1580.0,1579.8,7.672622]
[1744406746461,13.20611,1580.0,1579.8,1.342912]
[1744406746659,13.20611,1580.0,1579.7,7.09996]
[1744406747169,6.877,1580.0,1579.7,13.43012]
[1744406747467,62.03698,1580.3,1579.9,6.32926]
[1744406747671,6.876,1580.2,1579.9,6.32926]
[1744406748165,19.53289,1580.2,1579.8,6.32986]
[1744406748467,13.20438,1580.2,1579.8,6.32986]
[1744406749559,13.20438,1580.2,1579.8,12.65962]
[1744406749874,13.20438,1580.2,1579.9,1.265962]
[1744406750049,13.20438,1580.2,1579.8,6.32976]
[1744406750367,6.32885,1580.1,1579.7,7.09995]
[1744406750683,6.32964,1579.9,1579.7,0.7697]
[1744406750975,6.32918,1580.0,1579.7,0.7697]
[1744406751134,12.65853,1580.0,1579.7,0.7697]
[1744406751969,6.32918,1580.0,1579.7,1.6140392]
[1744406752540,6.32872,1580.1,1579.7,7.9442092]
[1744406752541,12.6577,1580.1,1579.7,7.9442092]
[1744406753039,6.32918,1580.0,1579.7,7.9442092]
[1744406753240,6.32956,1579.9,1579.7,1.6140392]
[1744406753452,12.65937,1579.9,1579.7,0.7697]
[1744406753653,6.32991,1579.8,1579.7,0.7697]
[1744406754557,6.33107,1579.6,1579.3,0.774]
[1744406754879,6.33151,1579.4,1579.3,0.774]
[1744406757089,13.20551,1579.4,1579.3,0.774]
[1744406757991,19.5373,1579.4,1579.1,0.774]
[1744406758163,6.33192,1579.3,1579.1,0.774]
[1744406759190,19.53722,1579.4,1579.1,7.10669]
[1744406760199,19.53722,1579.4,1579.1,0.774]
[1744406760495,19.53722,1579.4,1579.1,7.10671]
[1744406760794,6.33193,1579.3,1579.1,0.774]
[1744406762496,19.53742,1579.4,1579.1,0.774]
[1744406762923,6.33192,1579.3,1579.1,0.774]
[1744406764008,12.66399,1579.3,1579.1,0.774]
[1744406764218,6.33192,1579.3,1579.1,0.774]
[1744406766476,12.66414,1579.3,1579.1,0.774]
[1744406767010,6.33232,1579.2,1578.9,0.8196]
[1744406767198,6.33191,1579.3,1578.9,0.8196]
[1744406767399,6.33352,1578.9,1578.8,4.53e-06]
[1744406767796,7.06482,1578.9,1578.8,4.53e-06]
[1744406769315,11.08814839,1578.9,1578.8,4.53e-06]
[1744406771678,11.4185062,1578.9,1578.8,4.53e-06]
[1744406776626,11.6185062,1578.9,1578.8,4.53e-06]
[1744406777028,11.4185062,1578.9,1578.8,4.53e-06]
[1744406777231,11.6185062,1578.9,1578.8,4.53e-06]
[1744406779009,7.06763,1578.2,1578.1,0.05]
[1744406779212,6.33713,1578.0,1577.9,0.3952633]
[1744406780267,10.36311154,1578.0,1577.9,3.3e-06]
[1744406780550,11.09441154,1578.0,1577.9,3.3e-06]
[1744406780961,15.90328386,1578.0,1577.9,3.3e-06]
[1744406786140,22.54728386,1578.0,1577.9,3.3e-06]
[1744406786325,22.74728386,1578.0,1577.9,3.3e-06]
[1744406787152,0.2,1577.9,1577.1,0.77731]
[1744406787358,6.34034,1577.2,1577.1,0.77731]
[1744406787655,13.08134,1577.2,1577.1,0.77731]
[1744406788644,13.08134,1577.2,1577.1,1e-05]
[1744406789553,13.63134,1577.2,1577.1,1e-05]
[1744406789753,9.89075,1577.1,1577.0,1e-05]
[1744406790845,9.34075,1577.1,1577.0,1e-05]
[1744406791057,16.08475,1577.1,1577.0,1e-05]
[1744406791285,13.08475,1577.1,1577.0,1e-05]
[1744406791595,6.744,1577.1,1577.0,1e-05]
[1744406791744,6.744,1577.1,1577.0,0.77731]
[1744406791945,6.744,1577.1,1577.0,7.830344]
[1744406792280,6.744,1577.1,1577.0,1.489194]
[1744406792462,6.744,1577.1,1577.0,0.77731]
[1744406793984,6.744,1577.1,1577.0,7.11846]
[1744406794982,6.744,1577.1,1577.0,0.77731]
[1744406795845,6.744,1577.1,1577.0,7.11846]
[1744406796241,6.744,1577.1,1577.0,0.77731]
[1744406796571,13.08475,1577.1,1577.0,0.77731]
[1744406797591,13.63475,1577.1,1577.0,0.77731]
[1744406797769,16.08475,1577.1,1577.0,1e-05]
[1744406798373,16.63475,1577.1,1577.0,1e-05]
[1744406798955,17.36605,1577.1,1577.0,1e-05]
[1744406799163,24.01005,1577.1,1577.0,1e-05]
[1744406799485,24.34043084,1577.1,1577.0,1e-05]
[1744406799886,6.89316,1576.5,1576.4,0.3952633]
[1744406800060,21.20019258,1576.5,1576.4,0.3952633]
[1744406800264,21.20019258,1576.5,1576.4,3.3e-06]
[1744406801399,21.94676246,1576.5,1576.4,3.3e-06]
[1744406801773,6.34437,1576.2,1576.1,3.3e-06]
[1744406802469,9.89437,1576.2,1576.1,3.3e-06]
[1744406802797,10.62567,1576.2,1576.1,3.3e-06]
[1744406803766,16.67837,1576.2,1576.1,3.3e-06]
[1744406803973,16.12837,1576.2,1576.1,3.3e-06]
[1744406804715,21.50250781,1576.2,1576.1,3.3e-06]
[1744406805662,16.67837,1576.2,1576.1,3.3e-06]
[1744406805864,16.12837,1576.2,1576.1,3.3e-06]
[1744406811584,6.34357,1576.4,1576.2,0.8028]
[1744406811780,13.13028,1576.5,1576.2,0.8028]
[1744406811985,13.13028,1576.5,1576.2,1.51754833]
[1744406812244,6.34373,1576.4,1576.2,1.51754833]
[1744406812586,13.1302,1576.5,1576.3,0.8028]
[1744406812792,6.787,1576.5,1576.3,0.8028]
[1744406812988,6.34241,1576.7,1576.4,0.8028]
[1744406813214,6.787,1576.6,1576.5,0.8028]
[1744406813939,6.34203,1576.8,1576.5,0.8028]
[1744406814241,6.34203,1576.8,1576.6,0.8028]
[1744406814539,6.787,1576.9,1576.7,0.8028]
[1744406814911,6.787,1576.9,1576.7,7.14515]
[1744406815112,6.787,1576.9,1576.7,14.201895]
[1744406815338,6.787,1576.9,1576.8,0.8028]
[1744406816220,6.787,1576.9,1576.8,7.14475]
[1744406818428,6.787,1576.9,1576.8,7.20816462]
[1744406818632,6.785,1577.2,1576.9,13.48547]
[1744406818842,13.12537,1577.2,1576.9,8.49892846]
[1744406819772,6.785,1577.2,1577.0,6.34103]
[1744406819959,6.785,1577.2,1577.0,13.48484]
[1744406820454,6.785,1577.2,1577.0,7.14381]
[1744406820755,6.785,1577.2,1577.0,13.48481]
[1744406821065,6.785,1577.2,1577.1,6.34075]
[1744406822129,6.785,1577.2,1577.0,8.492281]
[1744406824354,6.785,1577.2,1577.0,14.833311]
[1744406825583,6.785,1577.2,1577.1,6.34075]
[1744406826682,6.785,1577.2,1577.0,14.833251]
[1744406826879,6.785,1577.2,1577.0,8.492251]
[1744406827088,6.34075,1577.1,1577.0,0.8028]
[1744406827304,6.34115,1577.0,1576.8,0.8061]
[1744406827591,6.34155,1576.9,1576.8,0.8061]
[1744406828089,6.33982,1577.4,1576.8,0.8061]
[1744406828090,6.3367,1578.2,1577.6,6.33859]
[1744406828292,6.3377,1577.9,1577.7,1.439959]
[1744406828454,6.33663,1578.2,1577.8,6.33765]
[1744406828684,0.55,1578.3,1578.0,6.33697]
[1744406828987,7.082,1578.2,1577.9,6.33741]
[1744406829209,13.41834,1578.2,1577.9,6.33741]
[1744406829397,6.33692,1578.1,1577.7,13.48257]
[1744406829798,7.081,1578.0,1577.7,13.48257]
[1744406829993,7.081,1578.0,1577.8,6.33789]
[1744406830202,7.081,1578.0,1577.7,13.48257]
[1744406830584,7.081,1578.0,1577.7,0.8061]
[1744406830783,13.41835,1578.0,1577.7,0.8061]
[1744406831520,13.41835,1578.0,1577.7,7.14443]
[1744406833221,13.41835,1578.0,1577.7,7.14429]
[1744406833922,13.41835,1578.0,1577.7,13.48248]
[1744406834228,7.081,1578.0,1577.8,6.33792]
[1744406836192,13.41824,1578.0,1577.7,7.14435]
[1744406836511,12.67565,1577.9,1577.7,0.8061]
[1744406836896,6.33793,1577.8,1577.7,0.8061]
[1744406837102,0.7545,1577.8,1577.2,0.7926]
[1744406837303,6.33977,1577.4,1577.2,0.7926]
[1744406837498,13.41877,1577.4,1577.2,0.7926]
[1744406837826,6.33994,1577.3,1577.2,0.7926]
[1744406838193,19.75871,1577.4,1577.2,0.7926]
[1744406838945,6.33994,1577.3,1577.2,0.7926]
[1744406839813,12.68114,1577.2,1577.0,0.8]
[1744406840011,6.34075,1577.1,1577.0,0.8]
[1744406840542,12.68183,1577.1,1576.8,0.8]
[1744406842542,6.34116,1577.0,1576.8,0.8]
[1744406842729,12.68252,1577.0,1576.8,2.022073]
[1744406843410,6.34155,1576.9,1576.8,0.8]
[1744406843716,6.34155,1576.9,1576.4,11.16757781]
[1744406843717,6.34236,1576.7,1576.6,0.8]
[1744406843925,6.34215,1576.8,1576.4,5.62413781]
[1744406843926,6.34291,1576.6,1576.4,5.62413781]
[1744406844234,6.34316,1576.5,1576.4,0.8]
[1744406844843,6.34387,1576.4,1576.2,0.8]
[1744406845029,6.34387,1576.4,1576.2,1.18000033]
[1744406845742,6.34387,1576.4,1576.1,3.3e-06]
[1744406845743,6.34374,1576.4,1576.1,3.3e-06]
[1744406845903,7.08,1576.6,1576.1,3.3e-06]
[1744406846321,6.34409,1576.3,1576.1,3.3e-06]
[1744406846728,6.34437,1576.2,1576.1,3.3e-06]
[1744406847115,6.34409,1576.3,1576.1,3.3e-06]
[1744406847315,12.6883,1576.3,1576.1,3.3e-06]
[1744406847542,6.34409,1576.3,1576.1,3.3e-06]
[1744406847736,6.34437,1576.2,1576.1,3.3e-06]
[1744406847948,6.34339,1576.5,1576.1,3.3e-06]
[1744406848152,6.34384,1576.4,1576.1,6.3446733]
[1744406848445,12.68775,1576.4,1576.1,1.83774173]
[1744406848852,6.34411,1576.3,1576.1,1.83774173]
[1744406849539,6.34411,1576.3,1576.1,1.90118292]
[1744406851163,12.68753,1576.4,1576.1,8.24590292]
[1744406851330,6.34373,1576.4,1576.1,8.24590292]
[1744406851652,12.68745,1576.4,1576.1,8.24583292]
[1744406852066,12.68745,1576.4,1576.1,1.90118292]
[1744406852656,6.34397,1576.3,1576.1,1.90118292]
[1744406853261,12.68809,1576.3,1576.1,1.83774173]
[1744406853555,12.68809,1576.3,1576.1,3.3e-06]
[1744406853964,6.34437,1576.2,1576.1,3.3e-06]
[1744406854550,12.6881,1576.3,1576.1,3.3e-06]
[1744406854983,6.34437,1576.2,1576.1,3.3e-06]
[1744406855189,13.42737,1576.2,1576.1,3.3e-06]
[1744406856863,7.083,1576.2,1576.1,3.3e-06]
[1744406857063,13.42837,1576.2,1576.1,3.3e-06]
[1744406857587,7.084,1576.2,1576.1,7.0995733]
[1744406857793,7.084,1576.2,1576.1,0.7548033]
[1744406858089,7.084,1576.2,1576.1,7.0995733]
[1744406858490,7.084,1576.2,1576.1,8.44402763]
[1744406862754,6.3427,1576.7,1576.1,8.44402763]
[1744406862755,0.8175,1576.9,1576.3,0.55]
[1744406862960,13.27621,1577.0,1576.6,7.16418]
[1744406863156,13.27621,1577.0,1576.6,1.538018]
[1744406863491,13.27621,1577.0,1576.8,6.34192]
[1744406863492,6.935,1577.0,1576.8,6.34192]
[1744406863793,6.935,1577.0,1576.7,6.40574229]
[1744406863794,6.935,1577.0,1576.7,6.40565229]
[1744406863955,13.27627,1577.0,1576.7,6.40564705]
[1744406865369,13.27627,1577.0,1576.7,6.40561705]
[1744406865560,13.27627,1577.0,1576.7,7.83424956]
[1744406866094,13.27627,1577.0,1576.7,14.17647956]
[1744406866306,13.27627,1577.0,1576.7,14.11306251]
[1744406867000,6.935,1577.0,1576.7,7.77083251]
[1744406867205,6.935,1577.0,1576.7,7.83424582]
[1744406867407,6.935,1577.0,1576.8,6.34192]
[1744406867566,6.935,1577.0,1576.8,7.75953658]
[1744406868206,6.935,1577.0,1576.8,14.10137658]
[1744406868367,6.935,1577.0,1576.8,7.75945658]
[1744406868569,6.935,1577.0,1576.8,7.82287]
[1744406868782,6.935,1577.0,1576.8,7.82284]
[1744406868984,6.34082,1577.1,1576.8,7.82282]
[1744406869209,13.27382,1577.1,1576.8,12.74704342]
[1744406869519,6.34082,1577.1,1576.9,0.7568]
[1744406869697,13.27382,1577.1,1576.9,0.7568]
[1744406870419,6.34082,1577.1,1576.9,0.7568]
[1744406870623,13.27382,1577.1,1576.9,0.7568]
[1744406871227,6.933,1577.1,1576.9,0.7568]
[1744406871526,6.34115,1577.0,1576.7,0.7568]
[1744406871685,7.483,1577.1,1576.7,0.7568]
[1744406871686,6.34195,1576.8,1576.7,0.7568]
[1744406872498,6.34231,1576.8,1576.5,0.7568]
[1744406872910,6.34231,1576.8,1576.5,7.09992]
[1744406873205,6.34231,1576.8,1576.5,7.09983]
[1744406873206,12.68451,1576.8,1576.5,7.09983]
[1744406873407,12.68451,1576.8,1576.5,0.7568]
[1744406873611,6.34236,1576.7,1576.5,0.7568]
[1744406874896,6.3422,1576.8,1576.5,7.09995]
[1744406875399,12.6844,1576.8,1576.5,7.09995]
[1744406875627,6.3422,1576.8,1576.5,14.787294]
[1744406875822,6.3422,1576.8,1576.5,8.444144]
[1744406876124,6.3422,1576.8,1576.5,8.50756748]
[1744406879529,12.68437,1576.8,1576.5,8.50756748]
[1744406879831,6.34167,1576.9,1576.5,8.50756748]
[1744406880032,12.6836,1576.9,1576.6,0.85075675]
[1744406880433,6.34198,1576.8,1576.6,0.85075675]
[1744406880634,6.34198,1576.8,1576.5,7.09981]
[1744406880834,7.1568,1576.6,1576.3,0.7757]
[1744406881136,7.1568,1576.6,1576.3,3.7757]
[1744406881302,6.34321,1576.5,1576.3,0.7757]
[1744406881802,12.68658,1576.5,1576.3,0.7757]
[1744406882320,6.34393,1576.4,1576.1,2.18359249]
[1744406882632,12.68782,1576.4,1576.2,0.2741842]
[1744406882801,6.34324,1576.5,1576.2,0.2741842]
[1744406883000,6.933,1576.7,1576.2,0.2741842]
[1744406883001,13.27565,1576.7,1576.3,6.34378]
[1744406883219,13.27565,1576.7,1576.3,6.6179642]
[1744406883220,6.34289,1576.6,1576.3,6.6179642]
[1744406883515,6.34356,1576.4,1576.3,0.2741842]
[1744406883919,12.68736,1576.4,1576.1,0.7757033]
[1744406884121,12.68736,1576.4,1576.1,2.42227663]
[1744406884414,6.34398,1576.3,1576.1,2.42227663]
[1744406884932,12.68749,1576.4,1576.1,2.4857165]
[1744406885298,6.34325,1576.5,1576.2,6.34424]
[1744406885990,12.68442,1576.8,1576.4,0.7843]
[1744406886196,6.34212,1576.8,1576.5,6.61730818]
[1744406886404,6.34212,1576.8,1576.5,7.991815]
[1744406886611,6.34212,1576.8,1576.6,0.27429818]
[1744406886895,6.34236,1576.7,1576.6,0.27429818]
[1744406887102,6.34236,1576.7,1576.4,6.34343]
[1744406887607,12.68447,1576.8,1576.5,6.34307]
[1744406887807,12.68447,1576.8,1576.5,1.54952416]
[1744406888196,12.68447,1576.8,1576.6,0.27453157]
[1744406888606,19.61741,1576.9,1576.6,0.27453157]
[1744406888812,13.54997999,1577.3,1576.7,0.7843]
[1744406888813,10.55002999,1577.3,1576.7,0.7843]
[1744406889012,19.61507,1577.2,1576.8,6.40496869]
[1744406889216,19.61507,1577.2,1576.9,6.34154]
[1744406889742,6.934,1577.2,1577.0,12.68215]
[1744406889937,6.934,1577.2,1577.0,7.18873623]
[1744406890107,6.934,1577.2,1577.1,6.34075]
[1744406890308,4.20974999,1577.3,1577.2,6.34034]
[1744406890643,4.20974999,1577.3,1577.1,7.75075734]
[1744406891224,4.20974999,1577.3,1577.1,1.41000734]
[1744406891561,13.16871,1577.4,1577.1,7.687318]
[1744406891969,60.01143999,1577.7,1577.3,7.12396]
[1744406892174,60.01117999,1577.7,1577.4,7.051916]
[1744406892330,6.33885,1577.6,1577.4,0.712396]
[1744406893373,60.01118999,1577.7,1577.4,7.051816]
[1744406893669,53.67274999,1577.7,1577.5,6.33913]
[1744406893865,53.67274999,1577.7,1577.4,7.051816]
[1744406894070,60.01128999,1577.7,1577.4,7.051816]
[1744406894257,66.34978999,1577.7,1577.4,7.051796]
[1744406894457,6.33898,1577.6,1577.3,0.7843]
[1744406894660,60.01115999,1577.7,1577.3,7.12411]
[1744406894870,4.20974999,1577.7,1577.6,6.33874]
[1744406896272,4.20974999,1577.7,1577.5,16.75029466]
[1744406896458,4.20974999,1577.7,1577.5,16.75032466]
[1744406896658,4.20974999,1577.7,1577.6,1.67503247]
[1744406897378,4.20974999,1577.7,1577.6,8.01377247]
[1744406897860,0.1496,1577.8,1577.6,8.01377247]
[1744406897861,0.1496,1577.8,1577.7,0.7843]
[1744406898059,0.1496,1577.8,1577.7,11.74498466]
[1744406900981,0.1496,1577.8,1577.7,14.76198466]
[1744406901188,0.1496,1577.8,1577.7,17.72196838]
[1744406902753,0.1496,1577.8,1577.7,17.99394425]
[1744406903274,0.1496,1577.8,1577.7,17.72196838]
[1744406904321,56.281,1578.4,1578.1,7.1377]
[1744406905010,56.281,1578.4,1578.2,6.33623]
[1744406905326,56.281,1578.4,1578.2,1.347393]
[1744406905493,62.61659,1578.4,1578.0,6.33701]
[1744406905835,56.281,1578.4,1578.2,6.33601]
[1744406905978,56.281,1578.4,1578.1,12.67326]
[1744406906923,13.15984,1578.6,1578.3,6.33593]
[1744406907136,6.825,1578.6,1578.3,12.67161]
[1744406907425,6.33516,1578.5,1578.3,1.343471]
[1744406907632,6.33516,1578.5,1578.3,1.40682224]
[1744406907801,13.16006,1578.6,1578.3,1.40682224]
[1744406908406,13.16006,1578.6,1578.3,7.74274224]
[1744406909726,19.49494,1578.6,1578.3,7.74274224]
[1744406909926,0.55,1578.7,1578.5,6.33512]
[1744406910114,0.55,1578.7,1578.5,12.73347204]
[1744406910317,0.55,1578.7,1578.4,7.10961422]
[1744406910517,6.88445,1578.7,1578.4,0.77427422]
[1744406910813,6.88445,1578.7,1578.4,7.10979422]
[1744406911020,13.21907,1578.7,1578.5,0.71097942]
[1744406911326,6.88445,1578.7,1578.5,0.71097942]
[1744406911823,13.21894,1578.7,1578.5,0.71097942]
[1744406912028,6.88445,1578.7,1578.5,0.71097942]
[1744406912997,6.88445,1578.7,1578.6,6.33472]
[1744406912998,0.55,1578.7,1578.6,6.33472]
[1744406913304,0.55,1578.7,1578.6,7.75255194]
[1744406913701,0.55,1578.7,1578.6,8.30255194]
[1744406915005,0.55,1578.7,1578.6,9.07175194]
[1744406915313,0.55,1578.7,1578.6,1.41783194]
[1744406915515,0.55,1578.7,1578.6,7.75255194]
[1744406915722,0.55,1578.7,1578.6,7.81588695]
[1744406915918,0.55,1578.7,1578.6,9.07175194]
[1744406917205,0.55,1578.7,1578.6,12.55399861]
[1744406918635,0.55,1578.7,1578.6,12.82578909]
[1744406924304,0.55,1578.7,1578.6,0.27179048]
[1744406924639,0.55,1578.7,1578.6,6.39805943]
[1744406924942,0.55,1578.7,1578.6,6.33472]
[1744406925435,13.21893,1578.7,1578.4,11.18197888]
[1744406926540,13.21893,1578.7,1578.5,0.2731659]
[1744406926731,6.8844,1578.7,1578.5,0.2731659]
[1744406927133,6.8844,1578.7,1578.4,7.10965422]
[1744406927307,0.55,1578.7,1578.4,6.33544]
[1744406927512,6.33475,1578.6,1578.3,12.67154]
[1744406927727,6.33475,1578.6,1578.3,16.74388466]
[1744406928241,6.3358,1578.4,1578.1,4.07234466]
[1744406928445,12.67171,1578.4,1578.1,5.87428282]
[1744406928651,6.33633,1578.2,1577.9,10.40977466]
[1744406928873,6.33633,1578.2,1577.9,10.40973466]
[1744406929173,6.33633,1578.2,1578.0,0.27365605]
[1744406929535,6.33633,1578.2,1578.1,0.27365605]
[1744406929834,6.33633,1578.2,1577.9,13.40965466]
[1744406930057,6.33673,1578.1,1578.0,1.34096547]
[1744406930380,6.703,1578.4,1578.1,6.33641]
[1744406930576,19.37435,1578.4,1578.1,6.33641]
[1744406930735,19.37435,1578.4,1578.1,10.40875466]
[1744406930736,13.03865,1578.4,1578.1,10.40875466]
[1744406930937,6.703,1578.4,1578.2,6.33622]
[1744406931141,6.703,1578.4,1578.3,0.633622]
[1744406932257,13.03852,1578.4,1578.3,0.27388868]
[1744406932768,13.03852,1578.4,1578.1,6.33664]
[1744406932975,13.03852,1578.4,1578.1,12.67325]
[1744406933276,13.03852,1578.4,1578.1,6.33661]
[1744406933880,13.03852,1578.4,1578.2,0.27414435]
[1744406934280,13.03852,1578.4,1578.1,6.33661]
[1744406934585,13.03852,1578.4,1578.1,8.01121247]
[1744406935162,19.37421,1578.4,1578.1,8.01121247]
[1744406935363,19.37421,1578.4,1578.2,0.27417969]
[1744406935775,19.37421,1578.4,1578.1,8.01121247]
[1744406936695,19.37421,1578.4,1578.2,0.27416815]
[1744406937188,19.37421,1578.4,1578.1,8.01121247]
[1744406937489,19.37421,1578.4,1578.2,0.80112125]
[1744406939391,13.03852,1578.4,1577.9,10.1508]
[1744406939707,6.33696,1578.1,1577.9,3.0]
[1744406939857,6.33718,1578.0,1577.8,4.07234466]
[1744406940060,13.48047,1578.0,1577.8,4.07234466]
[1744406940294,13.48047,1578.0,1577.6,6.33864]
[1744406940295,7.5098,1578.0,1577.6,4.07234466]
[1744406940596,7.5098,1578.0,1577.5,10.41146466]
[1744406940597,12.6765,1577.8,1577.5,10.41146466]
[1744406940902,12.6765,1577.8,1577.6,1.04114647]
[1744406941053,6.33813,1577.8,1577.4,8.24678335]
[1744406941258,6.339,1577.6,1577.4,8.24678335]
[1744406941487,12.67812,1577.6,1577.4,8.24678335]
[1744406941795,6.33914,1577.5,1577.4,8.24678335]
[1744406942189,6.33914,1577.5,1577.4,4.43997324]
[1744406942698,7.14494,1577.5,1577.4,4.17443869]
[1744406943692,7.14494,1577.5,1577.2,4.17443869]
[1744406943693,7.14574,1577.3,1577.2,4.17443869]
[1744406944273,10.14574,1577.3,1577.2,8.69e-06]
[1744406945199,7.14735,1576.9,1576.8,5.42677029]
[1744406945396,7.5108,1576.9,1576.8,5.42677029]
[1744406945562,6.705,1576.9,1576.8,12.31139732]
[1744406946960,6.705,1576.9,1576.8,11.76872029]
[1744406947861,6.705,1576.9,1576.8,15.84106495]
[1744406948162,56.122,1577.2,1577.1,6.34075]
[1744406948684,6.707,1577.2,1577.1,6.34075]
[1744406948894,6.707,1577.2,1577.1,7.78264348]
[1744406949214,6.33921,1577.5,1577.2,6.3402]
[1744406949513,7.14464,1577.6,1577.2,12.6804]
[1744406949514,6.707,1577.4,1577.2,12.6804]
[1744406949871,6.707,1577.4,1577.3,6.33994]
[1744406950089,6.707,1577.4,1577.3,7.15194]
[1744406950378,6.707,1577.4,1577.3,9.54239847]
[1744406951441,13.04849,1577.7,1577.4,6.33942]
[1744406952493,13.04849,1577.7,1577.4,12.67882]
[1744406952695,13.04849,1577.7,1577.4,6.3394]
[1744406953420,6.71,1577.7,1577.4,6.3394]
[1744406953584,6.71,1577.7,1577.5,6.33911]
[1744406954019,6.71,1577.7,1577.5,12.67822]
[1744406954533,6.71,1577.7,1577.5,6.33911]
[1744406955493,6.71,1577.7,1577.5,12.67813]
[1744406955689,6.71,1577.7,1577.5,13.95228176]
[1744406956230,0.8191,1577.8,1577.5,13.95228176]
[1744406956438,6.71,1577.7,1577.5,13.95228176]
[1744406956643,6.71,1577.7,1577.2,9.34031]
[1744406956931,12.67795,1577.6,1577.2,15.68062]
[1744406957230,6.33924,1577.5,1577.2,9.34031]
[1744406957430,6.33924,1577.5,1577.2,3.0]
[1744406957641,6.33924,1577.5,1577.1,14.93519348]
[1744406957933,6.33955,1577.4,1577.1,3.0]
[1744406958091,6.33997,1577.3,1577.1,3.0]
[1744406958988,12.68007,1577.3,1577.0,10.41338466]
[1744406959268,6.71,1577.3,1576.8,10.41420466]
[1744406959473,6.34123,1577.0,1576.8,4.07234466]
[1744406959651,6.34155,1576.9,1576.6,10.41493466]
[1744406960253,6.34155,1576.9,1576.6,6.34259]
[1744406960452,19.39344,1576.9,1576.5,16.75846466]
[1744406960762,12.6843,1576.8,1576.5,10.41540466]
[1744406961060,7.1367,1576.8,1576.5,10.4788263]
[1744406961866,0.7946,1576.8,1576.5,10.4787763]
[1744406962024,0.7946,1576.8,1576.6,6.34258]
[1744406962629,0.7946,1576.8,1576.6,6.40600274]
[1744406962830,0.7946,1576.8,1576.6,12.6852]
[1744406963329,0.7946,1577.1,1576.7,4.07234466]
[1744406963531,7.13547,1577.1,1576.8,6.4053607]
[1744406963734,7.13547,1577.1,1576.8,12.7471907]
[1744406963950,7.13547,1577.1,1576.8,6.4052407]
[1744406964160,7.13547,1577.1,1576.8,12.7470707]
[1744406964354,0.7946,1577.1,1576.9,6.34154]
[1744406965870,6.711,1577.2,1576.9,5.89068266]
[1744406966069,0.7536,1577.4,1577.1,6.34075]
[1744406966370,6.712,1577.4,1577.3,6.33994]
[1744406968384,6.712,1577.4,1577.1,0.7725]
[1744406968385,13.05155,1577.4,1577.1,6.34072]
[1744406968590,13.05155,1577.4,1577.1,6.34061]
[1744406969291,13.05155,1577.4,1577.1,12.68123]
[1744406969452,13.05155,1577.4,1577.2,0.26622544]
[1744406970213,6.712,1577.4,1577.1,12.68123]
[1744406970392,6.712,1577.4,1577.1,13.949353]
[1744406971094,6.712,1577.4,1577.2,0.26622634]
[1744406971597,6.712,1577.4,1577.1,13.949353]
[1744406972999,6.712,1577.4,1577.2,0.26628017]
[1744406973408,6.712,1577.4,1577.2,6.3403]
[1744406974512,6.712,1577.4,1577.0,6.34104]
[1744406974513,6.34004,1577.3,1577.0,6.34104]
[1744406975099,7.09364,1577.3,1577.1,0.26639578]
[1744406975411,7.09394,1577.2,1577.1,0.26639578]
[1744406975777,6.34146,1577.0,1576.7,6.34217]
[1744406975981,6.711,1576.9,1576.7,6.34217]
[1744406976182,6.34195,1576.8,1576.5,6.34312]
[1744406976382,6.34195,1576.8,1576.5,6.34304]
[1744406976710,6.34258,1576.7,1576.5,0.06341927]
[1744406977013,6.34276,1576.6,1576.3,12.68769]
[1744406977215,0.7536,1576.5,1576.4,0.26675713]
[1744406978112,7.09676,1576.5,1576.4,0.26675713]
[1744406978318,13.80876,1576.5,1576.2,6.34426]
[1744406978699,13.80876,1576.5,1576.3,0.26669486]
[1744406979303,20.15223,1576.5,1576.1,18.276597]
[1744406979494,13.80876,1576.5,1576.1,20.1592567]
[1744406979698,20.15212,1576.5,1576.1,20.1592567]
[1744406979903,20.15212,1576.5,1576.2,0.26660003]
[1744406980419,20.15212,1576.5,1576.1,20.1592567]
[1744406980817,6.34388,1576.4,1576.1,2.655163]
[1744406980990,6.34388,1576.4,1576.1,3.3e-06]
[1744406981324,12.68784,1576.4,1576.1,3.3e-06]
[1744406982018,6.34399,1576.3,1576.1,3.3e-06]
[1744406982523,12.6883,1576.3,1576.1,3.3e-06]
[1744406982722,6.34437,1576.2,1576.1,3.3e-06]
[1744406983292,7.17417,1576.2,1576.1,3.3e-06]
[1744406987596,7.13597,1576.2,1576.1,3.3e-06]
[1744406989954,10.62063134,1576.2,1576.1,3.3e-06]
[1744406990758,11.17063134,1576.2,1576.1,3.3e-06]
[1744407003288,17.84563134,1576.2,1576.1,3.3e-06]
[1744407004290,10.62063134,1576.2,1576.1,3.3e-06]
[1744407004493,17.79663134,1576.2,1576.1,3.3e-06]
[1744407004710,17.24663134,1576.2,1576.1,3.3e-06]
[1744407006103,16.76197,1576.2,1576.1,3.3e-06]
[1744407006300,15.97037,1576.2,1576.1,3.3e-06]
[1744407006606,12.97037,1576.2,1576.1,3.3e-06]
[1744407007708,6.626,1576.2,1576.1,3.3e-06]
[1744407008382,6.626,1576.2,1576.1,0.8053033]
[1744407008585,12.97037,1576.2,1576.1,0.8053033]
[1744407008784,12.97037,1576.2,1576.1,3.3e-06]
[1744407014091,6.626,1576.2,1576.1,3.3e-06]
[1744407014300,6.626,1576.2,1576.1,0.7659033]